bitfinex-derivatives/quotes_ETHF0:USTF0_20250929
["timestamp","ask_amount","ask_price","bid_price","bid_amount"]
[1759136464350,0.00295155,4125.1,4125.0,1.55703]
[1759136464753,0.32315155,4125.1,4125.0,1.55703]
[1759136466855,0.75937155,4125.1,4125.0,1.55703]
[1759136467044,0.96887155,4125.1,4125.0,1.55703]
[1759136469747,0.00295155,4125.1,4125.0,1.55703]
[1759136469948,0.00295155,4125.1,4125.0,4.76483]
[1759136471657,0.5297,4125.9,4125.8,1.19494]
[1759136472556,0.53254253,4125.9,4125.8,1.19494]
[1759136473256,0.53254253,4125.9,4125.0,5.52013]
[1759136473257,0.4393,4123.9,4123.8,0.3138]
[1759136473552,0.6756,4123.5,4123.4,0.25021443]
[1759136473757,0.895,4123.5,4123.4,0.25021443]
[1759136473956,0.00284253,4125.9,4124.0,0.3138]
[1759136474158,3.2078,4126.5,4126.3,0.43609]
[1759136474355,0.067,4127.5,4126.9,0.5288]
[1759136474356,0.4393,4127.0,4126.9,0.5288]
[1759136474751,0.4393,4127.0,4126.9,0.3138]
[1759136474952,0.4393,4127.0,4126.9,0.74983]
[1759136475153,0.44155542,4127.0,4126.9,0.75290113]
[1759136475962,0.61655542,4127.0,4126.9,0.75290113]
[1759136476259,8.82435542,4127.0,4126.9,0.00307113]
[1759136485866,9.26037542,4127.0,4126.9,0.00307113]
[1759136486368,8.42995542,4127.0,4126.9,0.97260113]
[1759136486566,8.42995542,4127.0,4126.9,1.18470113]
[1759136486765,3.42995542,4127.0,4126.9,1.18470113]
[1759136486960,3.21005542,4127.0,4126.9,1.18470113]
[1759136487668,3.42915542,4127.0,4126.9,1.18470113]
[1759136488869,3.86517542,4127.0,4126.9,1.18470113]
[1759136489370,4.07867542,4127.0,4126.9,1.18470113]
[1759136489966,4.25287542,4127.0,4126.9,0.32157113]
[1759136490165,4.25287542,4127.0,4126.9,0.75760113]
[1759136490665,3.81685542,4127.0,4126.9,0.97260113]
[1759136490859,3.64265542,4127.0,4126.9,0.53657113]
[1759136491870,4.25287542,4127.0,4126.9,0.00307113]
[1759136495872,4.25287542,4127.0,4126.9,0.75760113]
[1759136496073,4.25287542,4127.0,4126.9,0.32157113]
[1759136496569,4.25287542,4127.0,4126.9,0.00307113]
[1759136497276,4.25287542,4127.0,4126.9,0.32157113]
[1759136497470,4.25287542,4127.0,4126.9,0.00307113]
[1759136500671,0.6068,4126.2,4126.1,0.7546]
[1759136500871,0.4326,4126.2,4126.1,0.9696]
[1759136501072,0.8687,4126.2,4126.1,0.9696]
[1759136501267,0.4326,4126.2,4126.1,1.1817]
[1759136501774,0.8687,4126.2,4126.1,0.53626677]
[1759136501978,1.0429,4126.2,4126.1,0.00276677]
[1759136502180,1.0429,4126.2,4126.1,0.32126677]
[1759136502781,1.0429,4126.2,4126.1,0.00276677]
[1759136503280,6.0429,4126.2,4126.1,0.00276677]
[1759136507282,0.4326,4125.3,4125.2,0.3185]
[1759136507479,4.4998,4125.3,4125.2,0.5335]
[1759136507780,4.3256,4125.3,4125.2,0.5335]
[1759136508280,4.4998,4125.3,4125.2,0.32080958]
[1759136508476,3.2078,4125.3,4125.2,1.18411958]
[1759136508677,0.45395542,4127.0,4125.3,1.09048]
[1759136508884,0.67305542,4127.0,4126.9,0.43603]
[1759136509080,0.45395542,4127.0,4126.9,0.43603]
[1759136509279,0.3213,4126.9,4126.8,3.2078]
[1759136509475,0.7539,4126.9,4126.8,3.4588]
[1759136509883,0.5404,4126.9,4126.8,3.2078]
[1759136510188,0.54222291,4126.9,4126.8,3.2078]
[1759136510674,0.32312291,4126.9,4126.8,3.2078]
[1759136515183,0.00182291,4126.9,4126.8,3.2078]
[1759136515483,0.5364,4127.4,4127.3,0.43599]
[1759136515779,0.7494,4127.4,4127.3,3.64379]
[1759136516383,0.75160982,4127.4,4127.3,3.64379]
[1759136517388,0.53860982,4127.4,4127.3,3.64379]
[1759136517588,0.32450982,4127.4,4127.3,3.64379]
[1759136518088,0.53860982,4127.4,4127.3,3.64379]
[1759136520890,0.32450982,4127.4,4127.3,3.64379]
[1759136523394,0.32450982,4127.4,4127.3,3.89379]
[1759136524592,0.53860982,4127.4,4127.3,3.64379]
[1759136524796,0.75160982,4127.4,4127.3,3.64379]
[1759136526188,1.18758982,4127.4,4127.3,0.43599]
[1759136526383,1.18539,4127.3,4127.2,0.43599]
[1759136527291,0.5364,4126.7,4126.6,3.2078]
[1759136527497,0.5364,4126.7,4126.6,3.89386]
[1759136528496,0.5364,4126.7,4126.6,3.64386]
[1759136528695,0.5364,4126.7,4126.6,3.89386]
[1759136530897,0.1323,4127.0,4126.9,0.43603]
[1759136531096,0.1323,4127.0,4126.9,0.68603]
[1759136531594,0.4546,4127.0,4126.9,0.68603]
[1759136532698,0.33860982,4127.4,4127.3,0.43599]
[1759136532898,0.56390982,4127.4,4127.3,0.68599]
[1759136533398,0.78160982,4127.4,4127.3,0.68599]
[1759136533598,1.21757982,4127.4,4127.3,0.68599]
[1759136536501,0.78160982,4127.4,4127.3,0.68599]
[1759136537700,1.21757982,4127.4,4127.3,0.68599]
[1759136539403,0.78160982,4127.4,4127.3,0.68599]
[1759136539607,0.00220982,4127.4,4127.3,0.68599]
[1759136540706,0.33860982,4127.4,4127.3,0.68599]
[1759136545809,0.56390982,4127.4,4127.3,0.68599]
[1759136546907,0.33860982,4127.4,4127.3,0.68599]
[1759136547810,0.76130982,4127.4,4127.3,0.43599]
[1759136548004,0.76130982,4127.4,4127.3,0.68499]
[1759136554611,0.3281,4127.2,4127.1,3.2078]
[1759136554810,1.1868,4127.2,4127.1,3.89281]
[1759136555009,1.1868,4127.2,4127.1,3.4568]
[1759136555513,1.1868,4127.2,4127.1,3.89281]
[1759136556116,1.1868,4127.2,4127.1,3.4568]
[1759136556609,1.1868,4127.2,4127.1,3.89281]
[1759136561617,1.1868,4127.2,4127.1,3.2078]
[1759136563616,1.1868,4127.2,4127.1,3.64381]
[1759136564620,0.7508,4127.2,4127.1,3.64381]
[1759136565116,0.5466,4127.2,4127.1,3.64381]
[1759136565312,0.3281,4127.2,4127.1,3.64381]
[1759136565513,0.33030982,4127.4,4127.1,3.2078]
[1759136565713,0.33030982,4127.4,4127.2,0.248]
[1759136566119,0.00220982,4127.4,4127.3,0.43599]
[1759136569826,0.54880982,4127.4,4127.2,0.248]
[1759136570121,0.75300982,4127.4,4127.3,0.43599]
[1759136572729,0.33030982,4127.4,4127.3,0.43599]
[1759136574130,0.54880982,4127.4,4127.3,0.43599]
[1759136574333,0.76030982,4127.4,4127.3,0.43599]
[1759136589749,0.33030982,4127.4,4127.3,0.43599]
[1759136590247,0.55550982,4127.4,4127.3,0.43599]
[1759136591248,0.76700982,4127.4,4127.3,0.43599]
[1759136591751,0.76700982,4127.4,4127.3,0.68299]
[1759136594846,0.333,4127.3,4127.1,3.2078]
[1759136595051,0.7659,4127.3,4127.2,0.683]
[1759136596848,0.333,4127.2,4127.1,3.2078]
[1759136597047,0.7659,4127.2,4127.1,3.2078]
[1759136597248,1.2019,4127.2,4127.1,3.2078]
[1759136597947,6.2019,4127.2,4127.1,3.2078]
[1759136598454,6.2019,4127.2,4127.1,3.64381]
[1759136598750,5.7659,4127.2,4127.1,3.64381]
[1759136599652,0.7659,4127.2,4127.1,3.89081]
[1759136601260,0.5494,4127.2,4127.1,3.89081]
[1759136601755,0.7659,4127.2,4127.1,3.89081]
[1759136603351,1.2019,4127.2,4127.1,3.89081]
[1759136603558,1.2019,4127.2,4127.1,3.2078]
[1759136609562,0.7659,4127.2,4127.1,3.64381]
[1759136609762,0.5401,4127.2,4127.1,3.2078]
[1759136610465,0.333,4127.2,4127.1,3.64381]
[1759136610959,0.00220982,4127.4,4127.3,0.43599]
[1759136611258,0.34200982,4127.4,4127.3,0.68299]
[1759136613768,0.00220982,4127.4,4127.3,0.68299]
[1759136614170,0.34200982,4127.4,4127.3,0.68299]
[1759136616277,0.54910982,4127.4,4127.3,0.68299]
[1759136617576,0.34200982,4127.4,4127.3,0.68299]
[1759136617769,0.54910982,4127.4,4127.3,0.68299]
[1759136618074,0.75530982,4127.4,4127.3,0.68299]
[1759136619276,0.54910982,4127.4,4127.3,0.68299]
[1759136620976,0.75530982,4127.4,4127.3,0.68299]
[1759136624883,0.34200982,4127.4,4127.3,0.68299]
[1759136626686,0.54910982,4127.4,4127.3,0.68299]
[1759136627585,0.75530982,4127.4,4127.3,0.68299]
[1759136639193,0.76120982,4127.4,4127.3,0.68299]
[1759136639591,0.34200982,4127.4,4127.3,0.68299]
[1759136640894,0.77960982,4127.4,4127.3,0.68299]
[1759136645196,0.77960982,4127.4,4127.3,0.247]
[1759136645392,0.77960982,4127.4,4127.3,0.436]
[1759136647199,0.77960982,4127.4,4127.3,0.683]
[1759136657599,0.34200982,4127.4,4127.3,0.683]
[1759136659505,0.55740982,4127.4,4127.3,0.683]
[1759136668698,0.77330982,4127.4,4127.1,3.2078]
[1759136668899,0.77330982,4127.4,4124.5,10.90736]
[1759136668900,0.8888,4126.0,4125.9,0.68314]
[1759136669204,0.8888,4126.0,4125.9,0.43614]
[1759136669911,0.1299,4128.0,4127.3,0.7401]
[1759136670106,0.1299,4128.0,4127.3,0.9871]
[1759136670709,0.20770982,4127.4,4127.3,0.9871]
[1759136671421,0.00220982,4127.4,4127.3,0.9871]
[1759136671908,0.33970982,4127.4,4127.3,0.9871]
[1759136673817,0.54520982,4127.4,4127.3,0.9871]
[1759136674419,0.00220982,4127.4,4127.3,0.9871]
[1759136676718,0.33970982,4127.4,4127.3,0.9871]
[1759136676915,0.76110982,4127.4,4127.3,0.8537]
[1759136677118,0.76110982,4127.4,4127.3,0.683]
[1759136677614,0.76110982,4127.4,4127.3,0.8889]
[1759136678013,0.76110982,4127.4,4127.3,0.683]
[1759136685319,0.76110982,4127.4,4127.3,0.8889]
[1759136688420,0.76110982,4127.4,4127.3,1.1007]
[1759136689128,0.76110982,4127.4,4127.3,1.4231]
[1759136694621,0.76110982,4127.4,4127.3,1.1007]
[1759136696228,0.54520982,4127.4,4127.3,1.4292]
[1759136700731,0.75900982,4127.4,4127.3,1.4292]
[1759136701533,0.33970982,4127.4,4127.3,1.4292]
[1759136701735,0.00220982,4127.4,4127.3,1.4292]
[1759136702829,0.00220982,4127.4,4127.3,6.4292]
[1759136712339,0.32910982,4127.4,4127.3,6.4292]
[1759136714335,0.74540982,4127.4,4127.3,0.436]
[1759136714535,0.00220982,4127.4,4127.3,1.442]
[1759136720347,3.2078,4128.4,4128.3,0.87299]
[1759136720348,3.6306,4128.4,4128.3,0.87299]
[1759136720543,3.6306,4128.4,4128.3,1.44189]
[1759136721448,3.63333757,4128.4,4128.3,1.44422243]
[1759136722347,3.94443757,4128.4,4128.3,1.44422243]
[1759136722943,3.94443757,4128.4,4128.3,0.89922243]
[1759136723951,3.94443757,4128.4,4128.3,0.68522243]
[1759136730250,3.94443757,4128.4,4128.3,1.24482243]
[1759136730554,3.94443757,4128.4,4128.3,0.68522243]
[1759136731055,3.94443757,4128.4,4128.3,0.43822243]
[1759136731354,3.94443757,4128.4,4128.3,0.68522243]
[1759136733953,4.46740868,4128.4,4128.3,0.68522243]
[1759136739061,4.46740868,4128.4,4128.3,0.43822243]
[1759136744064,4.90328868,4128.4,4128.3,0.43822243]
[1759136750972,4.46740868,4128.4,4128.3,0.43822243]
[1759136752271,4.46740868,4128.4,4128.3,0.00233243]
[1759136752272,4.90328868,4128.4,4128.3,0.00233243]
[1759136752660,4.46740868,4128.4,4128.3,0.43822243]
[1759136752866,4.71440868,4128.4,4128.3,0.43822243]
[1759136753172,5.15028868,4128.4,4128.3,0.43822243]
[1759136754671,4.71440868,4128.4,4128.3,0.43822243]
[1759136755979,5.15029868,4128.4,4128.3,0.43822243]
[1759136756478,4.71440868,4128.4,4128.3,0.43822243]
[1759136756976,4.46740868,4128.4,4128.3,0.98692243]
[1759136757167,4.71440868,4128.4,4128.3,0.98692243]
[1759136760372,4.71440868,4128.4,4128.3,0.65652243]
[1759136761178,4.71440868,4128.4,4128.3,0.43822243]
[1759136763282,4.46740868,4128.4,4128.3,0.76862243]
[1759136763482,4.46740868,4128.4,4128.3,0.98692243]
[1759136766275,4.26240868,4128.4,4128.3,1.21222243]
[1759136766483,4.48040868,4128.4,4128.3,1.21222243]
[1759136766980,3.73350868,4128.4,4128.3,1.21222243]
[1759136767680,0.04671805,4130.2,4129.4,0.43578]
[1759136767873,4.28738623,4129.5,4129.4,0.43578]
[1759136768179,4.53438623,4129.5,4129.4,0.43578]
[1759136768380,4.86498623,4129.5,4129.4,0.43578]
[1759136768784,4.62010564,4129.5,4129.4,0.43578]
[1759136768975,4.86710564,4129.5,4129.4,0.43578]
[1759136770387,4.62010564,4129.5,4129.4,0.43578]
[1759136770584,4.86710564,4129.5,4129.4,0.43578]
[1759136772683,4.48560564,4129.5,4129.4,0.87938]
[1759136772882,3.96291941,4129.5,4129.4,1.21548]
[1759136773187,4.08931941,4129.5,4129.4,1.21548]
[1759136773484,3.97221941,4129.5,4129.4,1.21548]
[1759136773687,0.54281941,4129.5,4129.4,1.21548]
[1759136774886,0.00211941,4129.5,4129.4,1.21548]
[1759136775383,0.5309,4130.2,4130.1,1.19981]
[1759136776391,0.53399783,4130.2,4130.1,1.19981]
[1759136778388,0.75559783,4130.2,4130.1,1.19981]
[1759136778685,0.75559783,4130.2,4130.0,0.43571]
[1759136778686,0.3208,4130.1,4130.0,0.43571]
[1759136778988,0.7525,4130.1,4130.0,0.43571]
[1759136781486,0.7525,4130.1,4130.0,0.98571]
[1759136782089,0.7525,4130.1,4130.0,1.19981]
[1759136787611,0.7525,4130.1,4130.0,0.43571]
[1759136787807,0.7525,4130.1,4130.0,0.98501]
[1759136788510,0.7525,4130.1,4130.0,0.66171]
[1759136789011,0.7525,4130.1,4130.0,0.98501]
[1759136789403,0.7525,4130.1,4130.0,0.43571]
[1759136790111,1.18821,4130.1,4130.0,0.43571]
[1759136791009,0.7525,4130.1,4130.0,1.20201]
[1759136791713,1.18821,4130.1,4130.0,0.66171]
[1759136791908,1.18821,4130.1,4130.0,0.43571]
[1759136792412,1.18821,4130.1,4130.0,0.98501]
[1759136792813,0.7525,4130.1,4130.0,0.98501]
[1759136793917,1.18821,4130.1,4130.0,0.98501]
[1759136794717,1.18821,4130.1,4130.0,0.43572]
[1759136795119,0.7525,4130.1,4130.0,0.98502]
[1759136797318,1.26995263,4130.1,4130.0,1.20202]
[1759136798718,1.70566263,4130.1,4130.0,0.43572]
[1759136798920,1.70566263,4130.1,4130.0,0.98502]
[1759136799120,1.70566263,4130.1,4130.0,1.20202]
[1759136799121,1.26995263,4130.1,4130.0,1.20202]
[1759136799520,0.51745263,4130.1,4130.0,1.57332]
[1759136800918,0.00309783,4130.2,4130.1,1.20201]
[1759136801227,0.52085685,4130.2,4130.1,1.20201]
[1759136803112,0.72815685,4130.2,4130.1,1.20201]
[1759136803422,1.05925685,4130.2,4130.1,1.20201]
[1759136814626,0.52085685,4130.2,4130.1,1.20201]
[1759136819535,0.85565685,4130.2,4130.1,1.20201]
[1759136820135,1.06715685,4130.2,4130.1,1.20201]
[1759136820734,0.73235685,4130.2,4130.1,1.20201]
[1759136821432,0.00309783,4130.2,4130.1,4.40981]
[1759136842859,0.73629783,4130.2,4130.1,4.65581]
[1759136843057,0.73629783,4130.2,4130.1,4.40981]
[1759136843258,0.73629783,4130.2,4130.1,4.65581]
[1759136846158,0.73629783,4130.2,4130.1,3.64351]
[1759136846465,0.73629783,4130.2,4130.1,3.88951]
[1759136846866,0.73629783,4130.2,4130.1,4.42931]
[1759136847356,0.3327,4130.1,4129.9,0.43573]
[1759136847661,0.1349,4130.0,4129.9,0.246]
[1759136847862,0.8884,4130.0,4129.9,0.246]
[1759136848663,1.32412,4130.0,4129.9,0.68173]
[1759136850465,0.7535,4129.8,4129.7,0.43575]
[1759136851766,1.18925,4129.8,4129.7,0.43575]
[1759136851963,1.70007586,4129.8,4129.7,0.43575]
[1759136852162,6.70007586,4129.8,4129.7,0.43575]
[1759136852566,6.70007586,4129.8,4129.6,0.246]
[1759136852567,0.43576,4129.7,4129.6,0.246]
[1759136852768,1.69988554,4129.7,4129.6,0.68177]
[1759136853268,1.18926,4129.7,4129.6,0.68177]
[1759136853464,0.1349,4129.5,4129.1,3.2078]
[1759136853661,0.7535,4129.2,4129.1,4.18342]
[1759136853968,0.7535,4129.2,4129.1,4.42942]
[1759136854456,0.7535,4129.2,4129.1,4.11532]
[1759136854858,0.7535,4129.2,4129.1,4.42942]
[1759136855971,0.7535,4129.2,4129.1,4.63772]
[1759136857064,1.18931,4129.2,4129.1,4.63772]
[1759136857574,1.18931,4129.2,4129.1,3.2078]
[1759136857774,6.18931,4129.2,4129.1,3.2078]
[1759136858073,1.32423,4129.0,4128.9,0.246]
[1759136858268,1.32423,4129.0,4128.9,0.68184]
[1759136858475,1.32423,4129.0,4128.9,1.22164]
[1759136859472,1.18936,4128.7,4128.6,3.2078]
[1759136859674,0.85669,4128.4,4128.3,0.22803243]
[1759136859973,1.18939,4128.4,4128.3,0.90993243]
[1759136860164,1.18939,4128.4,4128.3,0.47403243]
[1759136860366,1.18939,4128.4,4128.3,0.99643243]
[1759136860566,1.18939,4128.4,4128.3,1.43233243]
[1759136860765,0.5415,4128.4,4128.3,1.43233243]
[1759136860969,0.7535,4128.9,4128.8,1.18395]
[1759136861175,0.97732,4129.1,4129.0,0.78563]
[1759136861473,0.97732,4129.1,4129.0,1.30803]
[1759136861668,1.18932,4129.1,4129.0,1.30803]
[1759136863877,1.18932,4129.1,4129.0,1.18393]
[1759136864579,1.18932,4129.1,4129.0,0.7481]
[1759136865675,1.18932,4129.1,4129.0,1.18393]
[1759136866077,1.18932,4129.1,4129.0,0.7481]
[1759136867079,0.43584,4128.9,4128.8,0.246]
[1759136867280,0.85664,4128.9,4128.8,0.246]
[1759136867581,1.18934,4128.9,4128.8,0.246]
[1759136868077,1.18934,4128.9,4128.8,1.22165]
[1759136868878,1.18934,4128.9,4128.8,0.7858]
[1759136870385,1.18934,4128.9,4128.8,0.5398]
[1759136871382,1.18934,4128.9,4128.8,0.97565]
[1759136872282,1.18934,4128.9,4128.8,0.5398]
[1759136873183,1.18934,4128.9,4128.8,0.97565]
[1759136875183,1.18934,4128.9,4128.8,0.5398]
[1759136876586,1.18934,4128.9,4128.8,0.97565]
[1759136876887,1.18934,4128.9,4128.8,0.5398]
[1759136877683,0.86147,4128.6,4128.5,0.7767]
[1759136877884,1.18827,4128.6,4128.5,1.21258]
[1759136878587,1.18827,4128.6,4128.5,1.43068]
[1759136883197,0.7524,4128.6,4128.5,1.43068]
[1759136883389,0.7524,4128.6,4128.5,1.56018]
[1759136884193,1.26998109,4128.6,4128.5,1.56018]
[1759136884996,1.26998109,4128.6,4128.5,1.31418]
[1759136887688,1.26998109,4128.6,4128.5,1.18468]
[1759136889798,1.27047863,4128.6,4128.5,1.18468]
[1759136902202,1.70634863,4128.6,4128.5,0.7488]
[1759136902405,1.18429,4128.4,4128.3,0.65392243]
[1759136902608,1.70236863,4128.4,4128.3,0.97012243]
[1759136903310,1.70236863,4128.4,4128.3,1.19562243]
[1759136903707,1.26647863,4128.4,4128.3,1.19562243]
[1759136904012,1.70235863,4128.4,4128.3,1.19562243]
[1759136904212,1.26647863,4128.4,4128.3,1.19562243]
[1759136904912,1.70235863,4128.4,4128.3,1.19562243]
[1759136905813,1.26647863,4128.4,4128.3,1.19562243]
[1759136906017,1.70234863,4128.4,4128.3,1.19562243]
[1759136911311,0.51807863,4128.4,4128.3,1.19562243]
[1759136911612,0.97876,4128.6,4128.5,0.6871]
[1759136911915,1.49745689,4128.6,4128.5,0.8995]
[1759136913219,1.49745689,4128.6,4128.5,1.33537]
[1759136914417,1.72045689,4128.6,4128.5,0.8995]
[1759136914720,1.72045689,4128.6,4128.5,0.7724]
[1759136915123,1.72045689,4128.6,4128.5,1.20827]
[1759136915316,1.72045689,4128.6,4128.5,0.7724]
[1759136916621,1.72045689,4128.6,4128.5,0.56]
[1759136917122,1.72045689,4128.6,4128.5,0.99587]
[1759136919827,1.72045689,4128.6,4128.5,0.56]
[1759136920822,0.1345,4128.5,4128.3,0.34133243]
[1759136921037,1.72047689,4128.4,4128.3,0.00233243]
[1759136921228,1.72047689,4128.4,4128.3,0.77473243]
[1759136922332,1.72047689,4128.4,4128.3,1.21062243]
[1759136922631,1.72047689,4128.4,4128.3,0.77473243]
[1759136925132,1.72047689,4128.4,4128.3,0.56233243]
[1759136926330,1.72047689,4128.4,4128.3,0.00233243]
[1759136938845,1.72047689,4128.4,4128.3,0.52063243]
[1759136939744,1.72047689,4128.4,4128.3,0.20973243]
[1759136940847,1.72047689,4128.4,4128.3,0.00233243]
[1759136941248,0.51869689,4128.4,4128.3,1.16432243]
[1759136941456,1.25189689,4128.4,4128.3,0.72843243]
[1759136942147,1.25189689,4128.4,4128.3,1.16432243]
[1759136945261,1.68777689,4128.4,4128.3,1.16432243]
[1759136946354,1.68777689,4128.4,4128.3,0.72843243]
[1759136946963,1.25189689,4128.4,4128.3,1.16432243]
[1759136947265,1.68777689,4128.4,4128.3,0.00233243]
[1759136947468,1.68777689,4128.4,4128.3,0.43822243]
[1759136947755,1.68777689,4128.4,4128.3,0.74912243]
[1759136947959,1.68777689,4128.4,4128.3,0.95652243]
[1759136948461,1.25189689,4128.4,4128.3,1.40932243]
[1759136949465,0.51869689,4128.4,4128.3,1.40932243]
[1759136949762,0.95126,4128.6,4128.5,1.29057]
[1759136949961,1.47161461,4128.6,4128.5,1.29057]
[1759136950162,1.68941461,4128.6,4128.5,0.7261]
[1759136950361,1.68941461,4128.6,4128.5,0.5183]
[1759136950562,1.68941461,4128.6,4128.5,0.2074]
[1759136951466,1.68941461,4128.6,4128.5,0.64327]
[1759136951767,1.68941461,4128.6,4128.5,0.95417]
[1759136951957,1.25355461,4128.6,4128.5,0.95417]
[1759136952268,1.68941461,4128.6,4128.5,1.16197]
[1759136952969,1.25355461,4128.6,4128.5,1.16197]
[1759136953162,1.25355461,4128.6,4128.5,1.29587]
[1759136953361,0.72505461,4128.6,4128.5,1.29587]
[1759136954869,1.04095461,4128.6,4128.5,1.29587]
[1759136955070,1.47681461,4128.6,4128.5,1.29587]
[1759136958676,1.70001461,4128.6,4128.5,1.29587]
[1759136959471,1.70001461,4128.6,4128.5,4.50367]
[1759136960071,1.26415461,4128.6,4128.5,4.50367]
[1759136960270,1.16091461,4128.6,4128.5,4.50367]
[1759136960876,1.47681461,4128.6,4128.5,4.50367]
[1759136961780,1.04095461,4128.6,4128.5,4.50367]
[1759136962170,0.52035461,4128.6,4128.5,4.50367]
[1759136964180,0.97045,4128.7,4128.6,1.18115]
[1759136964381,1.49009941,4128.7,4128.6,1.42615]
[1759136964681,1.05424941,4128.7,4128.6,1.42615]
[1759136964878,0.74374941,4128.7,4128.6,1.42615]
[1759136966080,1.05424941,4128.7,4128.6,1.42615]
[1759136966482,1.49009941,4128.7,4128.6,1.42615]
[1759136966783,1.05424941,4128.7,4128.6,1.42615]
[1759136968485,1.49008941,4128.7,4128.6,1.42615]
[1759136968681,1.05424941,4128.7,4128.6,1.42615]
[1759136973288,1.49008941,4128.7,4128.6,1.42615]
[1759136973484,1.49008941,4128.7,4128.6,0.9903]
[1759136973683,1.71468941,4128.7,4128.6,0.9903]
[1759136973986,1.71468941,4128.7,4128.6,0.245]
[1759136974487,1.17685,4128.6,4128.5,3.2078]
[1759136974681,1.69649941,4128.6,4128.5,3.4528]
[1759136974889,1.69649941,4128.6,4128.5,3.88866]
[1759136976689,1.69649941,4128.6,4128.5,4.09776]
[1759136976889,1.69649941,4128.6,4128.5,4.40996]
[1759136981087,1.26064941,4128.6,4128.5,4.40996]
[1759136981390,1.26064941,4128.6,4128.5,4.63396]
[1759136982192,1.69649941,4128.6,4128.5,4.63396]
[1759136985795,1.69649941,4128.6,4128.5,4.1981]
[1759136986086,1.69649941,4128.6,4128.5,3.6619]
[1759136986490,1.69649941,4128.6,4128.5,3.9741]
[1759136986891,1.69649941,4128.6,4128.5,4.40996]
[1759136987596,1.69649941,4128.6,4128.5,4.63396]
[1759136992096,1.69649941,4128.6,4128.5,4.76776]
[1759137000799,0.72554941,4128.6,4128.5,4.76776]
[1759137000997,0.51964941,4128.6,4128.5,4.76776]
[1759137001505,0.95549941,4128.6,4128.5,4.76776]
[1759137004604,0.43585,4128.6,4128.5,4.76776]
[1759137004806,0.95532184,4128.6,4128.5,4.76776]
[1759137006108,1.17882184,4128.6,4128.5,4.3319]
[1759137006308,1.50302184,4128.6,4128.5,4.3319]
[1759137007211,1.72242184,4128.6,4128.5,4.3319]
[1759137007812,1.72242184,4128.6,4128.5,4.76776]
[1759137009812,1.72242184,4128.6,4128.5,4.3319]
[1759137010212,1.72242184,4128.6,4128.5,4.76776]
[1759137012115,1.50302184,4128.6,4128.5,4.76776]
[1759137016515,0.95532184,4128.6,4128.5,4.76776]
[1759137017913,1.49872184,4128.6,4128.5,4.76776]
[1759137018309,1.49872184,4128.6,4128.5,4.3319]
[1759137018601,1.71742184,4128.6,4128.5,4.3319]
[1759137020317,1.19795,4128.6,4128.5,4.3319]
[1759137020612,1.71779445,4128.6,4128.5,4.3319]
[1759137025519,1.71779445,4128.6,4128.5,4.1981]
[1759137026018,1.71779445,4128.6,4128.5,3.9531]
[1759137026218,1.71779445,4128.6,4128.5,4.1981]
[1759137027815,0.84834445,4128.6,4128.5,4.1981]
[1759137028022,0.51984445,4128.6,4128.5,4.3309]
[1759137028322,0.95569445,4128.6,4128.5,4.3309]
[1759137031715,1.49319445,4128.6,4128.5,4.3309]
[1759137032916,1.17979445,4128.6,4128.5,4.3309]
[1759137033124,0.51984445,4128.6,4128.5,4.76676]
[1759137033415,0.65986,4129.4,4129.3,0.7457]
[1759137033621,1.17942503,4129.4,4129.3,0.7457]
[1759137034420,1.49282503,4129.4,4129.3,0.7457]
[1759137036920,0.95532503,4129.4,4129.3,0.7457]
[1759137037124,0.95532503,4129.4,4129.3,0.9907]
[1759137040119,0.43573,4129.7,4129.6,0.7457]
[1759137040313,0.66287783,4130.2,4130.1,0.4331]
[1759137040518,1.49480169,4130.2,4130.1,0.7457]
[1759137040825,1.72070169,4130.2,4130.1,0.7457]
[1759137041223,1.18140169,4130.2,4130.1,3.9535]
[1759137041422,0.66287783,4130.2,4130.1,4.1985]
[1759137041728,0.00309783,4130.2,4130.1,4.1985]
[1759137042117,0.00309783,4130.2,4130.1,4.63419]
[1759137052830,0.4356,4131.0,4130.9,0.4331]
[1759137053025,0.43559,4131.1,4130.9,1.4263]
[1759137053227,0.43559,4131.1,4131.0,0.8785]
[1759137053826,0.43738982,4131.1,4131.0,1.31409]
[1759137054728,0.76898982,4131.1,4131.0,1.31409]
[1759137055131,0.43738982,4131.1,4131.0,1.31409]
[1759137055327,0.98308982,4131.1,4131.0,0.8785]
[1759137056935,0.00180982,4131.1,4131.0,1.3141]
[1759137057134,0.43739982,4131.1,4131.0,1.3141]
[1759137058022,0.76899982,4131.1,4131.0,1.3141]
[1759137058227,0.33340982,4131.1,4131.0,1.3141]
[1759137058722,0.76899982,4131.1,4131.0,0.8785]
[1759137058926,1.19749982,4131.1,4131.0,0.8785]
[1759137060034,1.19749982,4131.1,4131.0,0.9907]
[1759137061836,1.19749982,4131.1,4131.0,1.42629]
[1759137062139,1.19749982,4131.1,4131.0,1.18129]
[1759137062338,0.00180982,4131.1,4131.0,1.55409]
[1759137062638,0.7601,4131.9,4131.8,0.99331]
[1759137062837,3.9679,4132.2,4132.1,0.7735]
[1759137063539,3.96992586,4132.2,4132.1,0.77627186]
[1759137063731,4.40539586,4132.2,4132.1,0.77627186]
[1759137066535,4.40539586,4132.2,4132.1,1.02027186]
[1759137067140,1.19759586,4132.2,4132.1,1.02027186]
[1759137067349,0.54772586,4132.2,4132.1,1.02027186]
[1759137067542,0.54772586,4132.2,4132.1,1.45575186]
[1759137068043,0.54772586,4132.2,4132.1,4.66355186]
[1759137068239,1.19759586,4132.2,4132.1,0.00277186]
[1759137068443,1.19562,4131.7,4131.6,3.2078]
[1759137068836,1.71246427,4131.7,4131.6,3.2078]
[1759137069542,1.71246427,4131.7,4131.6,3.20994304]
[1759137069741,6.71246427,4131.7,4131.6,0.00214304]
[1759137072042,6.95646427,4131.7,4131.6,0.00214304]
[1759137081048,6.71246427,4131.7,4131.6,0.52344304]
[1759137081250,1.95646427,4131.7,4131.6,0.74764304]
[1759137081445,1.16646427,4131.7,4131.6,1.18317304]
[1759137081644,0.3201,4132.0,4131.7,0.7455]
[1759137081840,0.2109,4131.9,4131.8,1.18101]
[1759137082050,4.06329586,4132.2,4132.1,0.4373]